[Event "Titled Tuesday Blitz January 18 2022"]
[White "Zotova, Anastasia"]
[Black "Prohorov, Olexandr"]
[WhiteFideId "34124907"]
[BlackFideId "14105578"]
[WhiteElo "1860"]
[BlackElo "1993"]
[Result "0-1"]
[Round "10"]
[TimeControl "180+1"]
[Date "2022.01.18"]
[WhiteClock "0:00:12"]
[BlackClock "0:00:46"]

1. d4 {[%clk 0:03:00]}  g6 {[%clk 0:02:59]} 2. Nf3 {[%clk 0:02:59]}  Bg7 {[%clk 0:03:00]} 3. Bf4 {[%clk 0:02:59]}  d6 {[%clk 0:02:58]} 4. e3 {[%clk 0:02:57]}  Nd7 {[%clk 0:02:59]} 5. Bd3 {[%clk 0:02:55]}  e5 {[%clk 0:02:59]} 6. dxe5 {[%clk 0:02:54]}  dxe5 {[%clk 0:03:00]} 7. Bg3 {[%clk 0:02:48]}  Qe7 {[%clk 0:03:00]} 8. Nbd2 {[%clk 0:02:40]}  Nh6 {[%clk 0:02:59]} 9. e4 {[%clk 0:02:37]}  O-O {[%clk 0:02:55]} 10. O-O {[%clk 0:02:36]}  Nc5 {[%clk 0:02:51]} 11. Qe2 {[%clk 0:02:31]}  Nxd3 {[%clk 0:02:49]} 12. Qxd3 {[%clk 0:02:29]}  f5 {[%clk 0:02:29]} 13. Bh4 {[%clk 0:02:20]}  Qe8 {[%clk 0:02:20]} 14. Qb3+ {[%clk 0:02:08]}  Kh8 {[%clk 0:02:20]} 15. Rfe1 {[%clk 0:02:05]}  f4 {[%clk 0:02:11]} 16. Rad1 {[%clk 0:01:55]}  Nf7 {[%clk 0:02:09]} 17. Qa3 {[%clk 0:01:37]}  Nd6 {[%clk 0:02:01]} 18. Nb3 {[%clk 0:01:30]}  b6 {[%clk 0:01:58]} 19. c4 {[%clk 0:01:28]}  h6 {[%clk 0:01:50]} 20. c5 {[%clk 0:00:58]}  Nc4 {[%clk 0:01:28]} 21. Qb4 {[%clk 0:00:53]}  Be6 {[%clk 0:01:28]} 22. cxb6 {[%clk 0:00:52]}  axb6 {[%clk 0:01:29]} 23. Qe7 {[%clk 0:00:50]}  Qc6 {[%clk 0:01:21]} 24. Rc1 {[%clk 0:00:27]}  Rae8 {[%clk 0:01:20]} 25. Qb4 {[%clk 0:00:27]}  g5 {[%clk 0:01:14]} 26. Bxg5 {[%clk 0:00:27]}  hxg5 {[%clk 0:01:15]} 27. Nxg5 {[%clk 0:00:27]}  Bg8 {[%clk 0:01:16]} 28. Qc3 {[%clk 0:00:19]}  Qg6 {[%clk 0:01:13]} 29. h4 {[%clk 0:00:18]}  Bh6 {[%clk 0:01:08]} 30. Nd2 {[%clk 0:00:16]}  Bxg5 {[%clk 0:01:08]} 31. hxg5 {[%clk 0:00:16]}  Nxd2 {[%clk 0:01:06]} 32. Qxd2 {[%clk 0:00:16]}  c5 {[%clk 0:01:02]} 33. Qd7 {[%clk 0:00:14]}  Qxg5 {[%clk 0:00:58]} 34. f3 {[%clk 0:00:15]}  Re7 {[%clk 0:00:57]} 35. Qc6 {[%clk 0:00:14]}  Rg7 {[%clk 0:00:56]} 36. Re2 {[%clk 0:00:15]}  Rf6 {[%clk 0:00:53]} 37. Qc8 {[%clk 0:00:14]}  Rh6 {[%clk 0:00:52]} 38. b4 {[%clk 0:00:12]}  Qg3 {[%clk 0:00:50]} 39. bxc5 {[%clk 0:00:12]}  Qh2+ {[%clk 0:00:47]} 40. Kf1 {[%clk 0:00:12]}  Qh1+ {[%clk 0:00:46]} 41. Kf2 {[%clk 0:00:12]}  Rxg2# {[%clk 0:00:46]} 0-1


[Site "https://www.chess.com"]

[Event "Titled Tuesday Blitz January 18 2022"]
[White "Aaditya Dhingra"]
[Black "Turzo, Attila"]
[WhiteFideId "25678191"]
[BlackFideId "704954"]
[WhiteElo "1789"]
[BlackElo "2534"]
[Result "1-0"]
[Round "11"]
[TimeControl "180+1"]
[Date "2022.01.18"]
[WhiteClock "0:00:24"]
[BlackClock "0:00:02"]

1. e4 {[%clk 0:03:00]}  c5 {[%clk 0:02:59]} 2. Nf3 {[%clk 0:03:00]}  e6 {[%clk 0:03:00]} 3. d4 {[%clk 0:02:59]}  cxd4 {[%clk 0:03:00]} 4. Nxd4 {[%clk 0:03:00]}  Nc6 {[%clk 0:03:01]} 5. Nc3 {[%clk 0:02:59]}  Qc7 {[%clk 0:03:02]} 6. Be3 {[%clk 0:02:58]}  a6 {[%clk 0:03:02]} 7. Be2 {[%clk 0:02:57]}  Nf6 {[%clk 0:03:01]} 8. O-O {[%clk 0:02:57]}  Be7 {[%clk 0:03:02]} 9. f4 {[%clk 0:02:56]}  d6 {[%clk 0:03:02]} 10. a4 {[%clk 0:02:56]}  O-O {[%clk 0:03:02]} 11. Kh1 {[%clk 0:02:56]}  Bd7 {[%clk 0:02:59]} 12. Nxc6 {[%clk 0:02:51]}  Bxc6 {[%clk 0:02:58]} 13. Bd3 {[%clk 0:02:48]}  b5 {[%clk 0:02:52]} 14. axb5 {[%clk 0:02:29]}  axb5 {[%clk 0:02:53]} 15. Nxb5 {[%clk 0:02:24]}  Qb7 {[%clk 0:02:41]} 16. Nd4 {[%clk 0:02:10]}  Bxe4 {[%clk 0:02:39]} 17. Bxe4 {[%clk 0:02:05]}  Qxe4 {[%clk 0:02:39]} 18. Rxa8 {[%clk 0:01:59]}  Rxa8 {[%clk 0:02:38]} 19. Re1 {[%clk 0:01:48]}  Bf8 {[%clk 0:02:13]} 20. c4 {[%clk 0:01:45]}  d5 {[%clk 0:02:07]} 21. b3 {[%clk 0:01:36]}  Ra2 {[%clk 0:02:06]} 22. Nf3 {[%clk 0:01:12]}  Ng4 {[%clk 0:01:52]} 23. Bg1 {[%clk 0:01:07]}  Qxf4 {[%clk 0:01:46]} 24. cxd5 {[%clk 0:01:07]}  exd5 {[%clk 0:01:23]} 25. Qxd5 {[%clk 0:01:06]}  h5 {[%clk 0:01:15]} 26. h3 {[%clk 0:01:04]}  Nf6 {[%clk 0:01:14]} 27. Qb7 {[%clk 0:01:00]}  Qf5 {[%clk 0:01:09]} 28. Ne5 {[%clk 0:00:42]}  Ne8 {[%clk 0:00:39]} 29. Nd7 {[%clk 0:00:38]}  Nd6 {[%clk 0:00:25]} 30. Qc6 {[%clk 0:00:36]}  g6 {[%clk 0:00:15]} 31. Nxf8 {[%clk 0:00:35]}  Nb5 {[%clk 0:00:08]} 32. Qe8 {[%clk 0:00:31]}  Qd5 {[%clk 0:00:05]} 33. Nd7+ {[%clk 0:00:24]}  Kg7 {[%clk 0:00:02]} 34. Qf8+ {[%clk 0:00:24]} 1-0


[Site "https://www.chess.com"]

[Event "Titled Tuesday Blitz January 18 2022"]
[White "Aradhya, Garg"]
[Black "Yeletsky, Ivan"]
[WhiteFideId "25006746"]
[BlackFideId "24180327"]
[WhiteElo "2169"]
[BlackElo "2348"]
[Result "1-0"]
[Round "11"]
[TimeControl "180+1"]
[Date "2022.01.18"]
[WhiteClock "0:00:18"]
[BlackClock "0:00:12"]

1. d4 {[%clk 0:02:52]}  Nf6 {[%clk 0:02:59]} 2. c4 {[%clk 0:02:52]}  e6 {[%clk 0:02:59]} 3. Nf3 {[%clk 0:02:52]}  Bb4+ {[%clk 0:02:59]} 4. Nbd2 {[%clk 0:02:52]}  b6 {[%clk 0:02:58]} 5. a3 {[%clk 0:02:52]}  Bxd2+ {[%clk 0:02:57]} 6. Qxd2 {[%clk 0:02:52]}  Bb7 {[%clk 0:02:56]} 7. e3 {[%clk 0:02:53]}  O-O {[%clk 0:02:56]} 8. Bd3 {[%clk 0:02:53]}  Ne4 {[%clk 0:02:57]} 9. Qc2 {[%clk 0:02:52]}  f5 {[%clk 0:02:58]} 10. O-O {[%clk 0:02:52]}  d6 {[%clk 0:02:58]} 11. b4 {[%clk 0:02:51]}  Rf6 {[%clk 0:02:58]} 12. Bb2 {[%clk 0:02:26]}  Rg6 {[%clk 0:02:56]} 13. d5 {[%clk 0:02:26]}  exd5 {[%clk 0:02:54]} 14. cxd5 {[%clk 0:02:25]}  Bxd5 {[%clk 0:02:53]} 15. Bc4 {[%clk 0:02:17]}  Bxc4 {[%clk 0:02:53]} 16. Qxc4+ {[%clk 0:02:18]}  d5 {[%clk 0:02:54]} 17. Rfd1 {[%clk 0:02:10]}  c6 {[%clk 0:02:51]} 18. b5 {[%clk 0:02:10]}  Rd6 {[%clk 0:02:46]} 19. Qb3 {[%clk 0:02:08]}  c5 {[%clk 0:02:43]} 20. Rxd5 {[%clk 0:02:01]}  Kh8 {[%clk 0:02:25]} 21. Rad1 {[%clk 0:01:47]}  Rxd5 {[%clk 0:02:20]} 22. Qxd5 {[%clk 0:01:46]}  Qxd5 {[%clk 0:02:19]} 23. Rxd5 {[%clk 0:01:46]}  h6 {[%clk 0:02:16]} 24. Rd8+ {[%clk 0:01:44]}  Kh7 {[%clk 0:02:16]} 25. Be5 {[%clk 0:01:42]}  a6 {[%clk 0:02:12]} 26. Rxb8 {[%clk 0:01:41]}  Ra7 {[%clk 0:01:49]} 27. Rxb6 {[%clk 0:01:36]}  axb5 {[%clk 0:01:48]} 28. Rxb5 {[%clk 0:01:34]}  Rxa3 {[%clk 0:01:48]} 29. Rb7 {[%clk 0:01:32]}  Kg8 {[%clk 0:01:30]} 30. Rxg7+ {[%clk 0:01:29]}  Kf8 {[%clk 0:01:30]} 31. Rc7 {[%clk 0:01:11]}  Ra2 {[%clk 0:01:17]} 32. h3 {[%clk 0:01:05]}  Rxf2 {[%clk 0:01:14]} 33. Rxc5 {[%clk 0:01:03]}  Kf7 {[%clk 0:01:09]} 34. Rc6 {[%clk 0:01:00]}  Re2 {[%clk 0:00:58]} 35. Bf4 {[%clk 0:01:00]}  Ra2 {[%clk 0:00:53]} 36. Rxh6 {[%clk 0:00:54]}  Ra1+ {[%clk 0:00:52]} 37. Kh2 {[%clk 0:00:54]}  Nf2 {[%clk 0:00:53]} 38. Ng5+ {[%clk 0:00:45]}  Kg7 {[%clk 0:00:52]} 39. Rc6 {[%clk 0:00:37]}  Re1 {[%clk 0:00:38]} 40. Be5+ {[%clk 0:00:32]}  Kf8 {[%clk 0:00:38]} 41. Rf6+ {[%clk 0:00:31]}  Ke7 {[%clk 0:00:37]} 42. Rxf5 {[%clk 0:00:28]}  Nd3 {[%clk 0:00:34]} 43. Bd4 {[%clk 0:00:23]}  Re2 {[%clk 0:00:32]} 44. Ne4 {[%clk 0:00:23]}  Ke6 {[%clk 0:00:26]} 45. Rf6+ {[%clk 0:00:22]}  Ke7 {[%clk 0:00:23]} 46. Rf1 {[%clk 0:00:21]}  Rc2 {[%clk 0:00:17]} 47. Nc3 {[%clk 0:00:18]}  Ke6 {[%clk 0:00:13]} 48. h4 {[%clk 0:00:18]}  Nf2 {[%clk 0:00:12]} 49. Kg3 {[%clk 0:00:18]}  Nd3 {[%clk 0:00:12]} 50. h5 {[%clk 0:00:18]} 1-0


[Site "https://www.chess.com"]

[Event "Titled Tuesday Blitz January 18 2022"]
[White "Artem_Koval"]
[Black "Erdogdu, Mert"]
[BlackFideId "6301495"]
[WhiteElo "2541"]
[BlackElo "2485"]
[Result "1/2-1/2"]
[Round "11"]
[TimeControl "180+1"]
[Date "2022.01.18"]
[WhiteClock "0:00:07"]
[BlackClock "0:00:06"]

1. d4 {[%clk 0:03:00]}  d5 {[%clk 0:02:59]} 2. Bf4 {[%clk 0:02:59]}  Nf6 {[%clk 0:02:58]} 3. e3 {[%clk 0:02:59]}  c5 {[%clk 0:02:58]} 4. c3 {[%clk 0:02:59]}  e6 {[%clk 0:02:58]} 5. Nd2 {[%clk 0:02:57]}  Bd6 {[%clk 0:02:58]} 6. Bg3 {[%clk 0:02:57]}  Nc6 {[%clk 0:02:57]} 7. Ngf3 {[%clk 0:02:57]}  O-O {[%clk 0:02:56]} 8. Bd3 {[%clk 0:02:57]}  b6 {[%clk 0:02:55]} 9. O-O {[%clk 0:02:56]}  Bb7 {[%clk 0:02:55]} 10. Ne5 {[%clk 0:02:55]}  Ne7 {[%clk 0:02:55]} 11. Bh4 {[%clk 0:02:54]}  Ng6 {[%clk 0:02:38]} 12. Nxg6 {[%clk 0:02:52]}  hxg6 {[%clk 0:02:37]} 13. f4 {[%clk 0:02:48]}  Qc7 {[%clk 0:02:27]} 14. Qf3 {[%clk 0:02:40]}  a5 {[%clk 0:02:08]} 15. a4 {[%clk 0:02:20]}  Ba6 {[%clk 0:02:04]} 16. Bxa6 {[%clk 0:02:21]}  Rxa6 {[%clk 0:02:04]} 17. g4 {[%clk 0:02:16]}  Qd7 {[%clk 0:01:46]} 18. Bxf6 {[%clk 0:02:03]}  gxf6 {[%clk 0:01:45]} 19. Rf2 {[%clk 0:02:01]}  Kg7 {[%clk 0:01:36]} 20. f5 {[%clk 0:01:54]}  exf5 {[%clk 0:01:30]} 21. gxf5 {[%clk 0:01:55]}  Raa8 {[%clk 0:01:18]} 22. Raf1 {[%clk 0:01:47]}  Be7 {[%clk 0:01:10]} 23. Rg2 {[%clk 0:01:44]}  Rh8 {[%clk 0:01:04]} 24. dxc5 {[%clk 0:01:36]}  bxc5 {[%clk 0:01:01]} 25. e4 {[%clk 0:01:36]}  dxe4 {[%clk 0:00:57]} 26. Nxe4 {[%clk 0:01:37]}  Raf8 {[%clk 0:00:55]} 27. fxg6 {[%clk 0:01:21]}  fxg6 {[%clk 0:00:54]} 28. Rd1 {[%clk 0:01:17]}  Qxa4 {[%clk 0:00:37]} 29. Qg4 {[%clk 0:00:49]}  Rh6 {[%clk 0:00:35]} 30. Rd7 {[%clk 0:00:20]}  Rf7 {[%clk 0:00:32]} 31. Qe6 {[%clk 0:00:17]}  Qa1+ {[%clk 0:00:22]} 32. Kf2 {[%clk 0:00:17]}  Kf8 {[%clk 0:00:15]} 33. Rd2 {[%clk 0:00:06]}  Qa4 {[%clk 0:00:13]} 34. Nd6 {[%clk 0:00:03]}  Bxd6 {[%clk 0:00:11]} 35. Qxd6+ {[%clk 0:00:02]}  Kg7 {[%clk 0:00:11]} 36. Kg1 {[%clk 0:00:02]}  Qe4 {[%clk 0:00:10]} 37. Rde2 {[%clk 0:00:02]}  Qb1+ {[%clk 0:00:10]} 38. Kf2 {[%clk 0:00:03]}  Qf5+ {[%clk 0:00:11]} 39. Kg1 {[%clk 0:00:03]}  Rh5 {[%clk 0:00:10]} 40. Rgf2 {[%clk 0:00:03]}  Rg5+ {[%clk 0:00:10]} 41. Rg2 {[%clk 0:00:03]}  Qb1+ {[%clk 0:00:10]} 42. Kf2 {[%clk 0:00:04]}  Rf5+ {[%clk 0:00:10]} 43. Kg3 {[%clk 0:00:02]}  Qf1 {[%clk 0:00:10]} 44. Ref2 {[%clk 0:00:01]}  Rg5+ {[%clk 0:00:10]} 45. Kh3 {[%clk 0:00:01]}  Rh5+ {[%clk 0:00:05]} 46. Kg3 {[%clk 0:00:01]}  Qc4 {[%clk 0:00:05]} 47. Kf3 {[%clk 0:00:01]}  Rf5+ {[%clk 0:00:04]} 48. Kg3 {[%clk 0:00:02]}  Rg5+ {[%clk 0:00:04]} 49. Kh3 {[%clk 0:00:02]}  Rxg2 {[%clk 0:00:02]} 50. Rxg2 {[%clk 0:00:03]}  g5 {[%clk 0:00:02]} 51. Rf2 {[%clk 0:00:03]}  Kg6 {[%clk 0:00:03]} 52. Kg3 {[%clk 0:00:03]}  Qh4+ {[%clk 0:00:02]} 53. Kg2 {[%clk 0:00:04]}  Rh7 {[%clk 0:00:03]} 54. Qd3+ {[%clk 0:00:04]}  Kh6 {[%clk 0:00:02]} 55. Rxf6+ {[%clk 0:00:02]}  Kh5 {[%clk 0:00:01]} 56. Qf3+ {[%clk 0:00:02]}  Qg4+ {[%clk 0:00:01]} 57. Qxg4+ {[%clk 0:00:02]}  Kxg4 {[%clk 0:00:02]} 58. Rc6 {[%clk 0:00:03]}  Rb7 {[%clk 0:00:02]} 59. Rxc5 {[%clk 0:00:03]}  Rxb2+ {[%clk 0:00:02]} 60. Kg1 {[%clk 0:00:04]}  Ra2 {[%clk 0:00:02]} 61. c4 {[%clk 0:00:02]}  Kf4 {[%clk 0:00:02]} 62. Rc8 {[%clk 0:00:02]}  Rc2 {[%clk 0:00:01]} 63. c5 {[%clk 0:00:02]}  Kg4 {[%clk 0:00:02]} 64. c6 {[%clk 0:00:02]}  a4 {[%clk 0:00:02]} 65. c7 {[%clk 0:00:02]}  a3 {[%clk 0:00:02]} 66. Ra8 {[%clk 0:00:02]}  Rxc7 {[%clk 0:00:03]} 67. Rxa3 {[%clk 0:00:02]}  Kh5 {[%clk 0:00:04]} 68. Kg2 {[%clk 0:00:02]}  Rc4 {[%clk 0:00:04]} 69. Rg3 {[%clk 0:00:03]}  Rh4 {[%clk 0:00:05]} 70. Rh3 {[%clk 0:00:03]}  Rxh3 {[%clk 0:00:05]} 71. Kxh3 {[%clk 0:00:04]}  g4+ {[%clk 0:00:06]} 72. Kg3 {[%clk 0:00:05]}  Kg5 {[%clk 0:00:06]} 73. h3 {[%clk 0:00:06]}  gxh3 {[%clk 0:00:06]} 74. Kxh3 {[%clk 0:00:07]} 1/2-1/2


[Site "https://www.chess.com"]

[Event "Titled Tuesday Blitz January 18 2022"]
[White "Azadaliyev, Jahandar"]
[Black "Berezin, Viktor"]
[WhiteFideId "13425811"]
[BlackFideId "14107872"]
[WhiteElo "1795"]
[BlackElo "2310"]
[Result "1-0"]
[Round "11"]
[TimeControl "180+1"]
[Date "2022.01.18"]
[WhiteClock "0:01:54"]
[BlackClock "0:00:04"]

1. d4 {[%clk 0:03:00]}  Nf6 {[%clk 0:00:12]} 2. c4 {[%clk 0:02:31]}  g6 {[%clk 0:00:13]} 3. Nf3 {[%clk 0:02:31]}  Bg7 {[%clk 0:00:13]} 4. g3 {[%clk 0:02:32]}  O-O {[%clk 0:00:13]} 5. Bg2 {[%clk 0:02:32]}  d6 {[%clk 0:00:14]} 6. O-O {[%clk 0:02:33]}  Nc6 {[%clk 0:00:14]} 7. Nc3 {[%clk 0:02:34]}  a6 {[%clk 0:00:15]} 8. Bg5 {[%clk 0:02:32]}  Rb8 {[%clk 0:00:15]} 9. e4 {[%clk 0:02:32]}  b5 {[%clk 0:00:15]} 10. cxb5 {[%clk 0:02:26]}  axb5 {[%clk 0:00:15]} 11. e5 {[%clk 0:02:27]}  Ne8 {[%clk 0:00:14]} 12. Qe2 {[%clk 0:02:26]}  h6 {[%clk 0:00:11]} 13. Bd2 {[%clk 0:02:19]}  b4 {[%clk 0:00:10]} 14. Ne4 {[%clk 0:02:18]}  dxe5 {[%clk 0:00:08]} 15. dxe5 {[%clk 0:02:19]}  Nxe5 {[%clk 0:00:08]} 16. Nxe5 {[%clk 0:02:18]}  Bxe5 {[%clk 0:00:09]} 17. Bxh6 {[%clk 0:02:18]}  Bg7 {[%clk 0:00:06]} 18. Bg5 {[%clk 0:02:18]}  f6 {[%clk 0:00:05]} 19. Be3 {[%clk 0:02:17]}  Nd6 {[%clk 0:00:06]} 20. Nc5 {[%clk 0:02:12]}  e5 {[%clk 0:00:05]} 21. Bd5+ {[%clk 0:02:00]}  Kh7 {[%clk 0:00:04]} 22. Qf3 {[%clk 0:01:56]}  Qe7 {[%clk 0:00:04]} 23. g4 {[%clk 0:01:55]}  f5 {[%clk 0:00:04]} 24. Qh3+ {[%clk 0:01:54]} 1-0


[Site "https://www.chess.com"]

[Event "Titled Tuesday Blitz January 18 2022"]
[White "Balabayeva, Xeniya"]
[Black "Tsyhanchuk, Stanislav"]
[WhiteFideId "13719688"]
[BlackFideId "13505130"]
[WhiteElo "1940"]
[BlackElo "2078"]
[Result "1-0"]
[Round "11"]
[TimeControl "180+1"]
[Date "2022.01.18"]
[WhiteClock "0:00:06"]
[BlackClock "0:00:01"]

1. e4 {[%clk 0:03:00]}  d5 {[%clk 0:02:43]} 2. exd5 {[%clk 0:02:59]}  Nf6 {[%clk 0:02:41]} 3. Nf3 {[%clk 0:02:58]}  Nxd5 {[%clk 0:02:37]} 4. d4 {[%clk 0:02:57]}  c5 {[%clk 0:02:34]} 5. c4 {[%clk 0:02:50]}  Nf6 {[%clk 0:02:18]} 6. d5 {[%clk 0:02:47]}  g6 {[%clk 0:02:11]} 7. Nc3 {[%clk 0:02:44]}  Bg7 {[%clk 0:02:04]} 8. Be2 {[%clk 0:02:40]}  O-O {[%clk 0:02:03]} 9. O-O {[%clk 0:02:30]}  Ne8 {[%clk 0:02:03]} 10. Be3 {[%clk 0:02:07]}  b6 {[%clk 0:02:03]} 11. Rc1 {[%clk 0:02:04]}  Nd6 {[%clk 0:02:03]} 12. b3 {[%clk 0:02:01]}  Nd7 {[%clk 0:01:58]} 13. h3 {[%clk 0:01:58]}  Ne5 {[%clk 0:01:58]} 14. Qd2 {[%clk 0:01:52]}  Bf5 {[%clk 0:01:53]} 15. Nxe5 {[%clk 0:01:37]}  Bxe5 {[%clk 0:01:52]} 16. f4 {[%clk 0:01:26]}  Bg7 {[%clk 0:01:41]} 17. Bf3 {[%clk 0:01:23]}  h5 {[%clk 0:01:37]} 18. g4 {[%clk 0:01:06]}  hxg4 {[%clk 0:01:36]} 19. hxg4 {[%clk 0:01:02]}  Bd7 {[%clk 0:01:33]} 20. Kg2 {[%clk 0:00:59]}  Qc8 {[%clk 0:01:32]} 21. Kg3 {[%clk 0:00:56]}  Rd8 {[%clk 0:00:52]} 22. Rh1 {[%clk 0:00:49]}  e5 {[%clk 0:00:50]} 23. dxe6 {[%clk 0:00:45]}  Bxe6 {[%clk 0:00:49]} 24. Nd5 {[%clk 0:00:45]}  Bxd5 {[%clk 0:00:39]} 25. cxd5 {[%clk 0:00:42]}  Re8 {[%clk 0:00:37]} 26. Rce1 {[%clk 0:00:39]}  Ne4+ {[%clk 0:00:37]} 27. Bxe4 {[%clk 0:00:37]}  Rxe4 {[%clk 0:00:38]} 28. Qh2 {[%clk 0:00:34]}  Qd7 {[%clk 0:00:35]} 29. Qh7+ {[%clk 0:00:30]}  Kf8 {[%clk 0:00:35]} 30. Bxc5+ {[%clk 0:00:30]}  bxc5 {[%clk 0:00:32]} 31. Rxe4 {[%clk 0:00:30]}  Qxd5 {[%clk 0:00:31]} 32. Rhe1 {[%clk 0:00:30]}  Rd8 {[%clk 0:00:22]} 33. f5 {[%clk 0:00:26]}  g5 {[%clk 0:00:16]} 34. f6 {[%clk 0:00:16]}  Bxf6 {[%clk 0:00:14]} 35. Qf5 {[%clk 0:00:16]}  Qd3+ {[%clk 0:00:12]} 36. R1e3 {[%clk 0:00:13]}  Qd6+ {[%clk 0:00:10]} 37. Kg2 {[%clk 0:00:13]}  Bd4 {[%clk 0:00:06]} 38. Re2 {[%clk 0:00:13]}  Qd5 {[%clk 0:00:03]} 39. Qxd5 {[%clk 0:00:10]}  Rxd5 {[%clk 0:00:04]} 40. Re8+ {[%clk 0:00:10]}  Kg7 {[%clk 0:00:04]} 41. R8e7 {[%clk 0:00:10]}  Kg6 {[%clk 0:00:04]} 42. Rxa7 {[%clk 0:00:10]}  Rd6 {[%clk 0:00:01]} 43. Rae7 {[%clk 0:00:09]}  Rf6 {[%clk 0:00:01]} 44. R7e4 {[%clk 0:00:08]}  Ra6 {[%clk 0:00:01]} 45. Rd2 {[%clk 0:00:07]}  f5 {[%clk 0:00:01]} 46. gxf5+ {[%clk 0:00:06]}  Kxf5 {[%clk 0:00:02]} 47. Rde2 {[%clk 0:00:07]}  g4 {[%clk 0:00:02]} 48. Re8 {[%clk 0:00:06]}  Kg5 {[%clk 0:00:02]} 49. Rg8+ {[%clk 0:00:06]}  Kf4 {[%clk 0:00:02]} 50. Rf8+ {[%clk 0:00:06]}  Kg5 {[%clk 0:00:03]} 51. Kg3 {[%clk 0:00:06]}  Rh6 {[%clk 0:00:01]} 52. Rg8+ {[%clk 0:00:06]}  Kf5 {[%clk 0:00:01]} 53. Rxg4 {[%clk 0:00:06]} 1-0


[Site "https://www.chess.com"]

[Event "Titled Tuesday Blitz January 18 2022"]
[White "Belyakov, Bogdan"]
[Black "Padmini, Rout"]
[WhiteFideId "24104795"]
[BlackFideId "5029295"]
[WhiteElo "2407"]
[BlackElo "2181"]
[Result "1-0"]
[Round "11"]
[TimeControl "180+1"]
[Date "2022.01.18"]
[WhiteClock "0:01:39"]
[BlackClock "0:00:07"]

1. e4 {[%clk 0:03:00]}  c5 {[%clk 0:02:56]} 2. c3 {[%clk 0:03:00]}  Nf6 {[%clk 0:02:54]} 3. e5 {[%clk 0:03:01]}  Nd5 {[%clk 0:02:55]} 4. d4 {[%clk 0:03:02]}  cxd4 {[%clk 0:02:53]} 5. cxd4 {[%clk 0:03:02]}  d6 {[%clk 0:02:51]} 6. Nf3 {[%clk 0:03:02]}  Nc6 {[%clk 0:02:41]} 7. Bc4 {[%clk 0:02:52]}  Nb6 {[%clk 0:02:34]} 8. Bb5 {[%clk 0:02:51]}  a6 {[%clk 0:02:31]} 9. Bxc6+ {[%clk 0:02:48]}  bxc6 {[%clk 0:02:32]} 10. O-O {[%clk 0:02:43]}  Nd5 {[%clk 0:02:26]} 11. Nc3 {[%clk 0:02:41]}  e6 {[%clk 0:02:15]} 12. Bg5 {[%clk 0:02:38]}  Qd7 {[%clk 0:02:05]} 13. Ne4 {[%clk 0:02:36]}  h6 {[%clk 0:01:53]} 14. Bh4 {[%clk 0:02:35]}  Bb7 {[%clk 0:01:35]} 15. Re1 {[%clk 0:02:19]}  dxe5 {[%clk 0:00:19]} 16. Nxe5 {[%clk 0:02:20]}  Qc7 {[%clk 0:00:19]} 17. Bg3 {[%clk 0:02:17]}  Qb6 {[%clk 0:00:17]} 18. Qh5 {[%clk 0:02:17]}  Qc7 {[%clk 0:00:12]} 19. Nc4 {[%clk 0:02:06]}  Qd7 {[%clk 0:00:11]} 20. Rac1 {[%clk 0:01:55]}  g6 {[%clk 0:00:10]} 21. Qf3 {[%clk 0:01:51]}  Bg7 {[%clk 0:00:09]} 22. Ned6+ {[%clk 0:01:50]}  Kf8 {[%clk 0:00:09]} 23. Ne5 {[%clk 0:01:40]}  Qe7 {[%clk 0:00:07]} 24. Nxg6+ {[%clk 0:01:39]} 1-0


[Site "https://www.chess.com"]

[Event "Titled Tuesday Blitz January 18 2022"]
[White "Brunner, Nicolas"]
[Black "Klukin, Kirill"]
[WhiteFideId "620246"]
[BlackFideId "24199273"]
[WhiteElo "2372"]
[BlackElo "2324"]
[Result "0-1"]
[Round "11"]
[TimeControl "180+1"]
[Date "2022.01.18"]
[WhiteClock "0:00:02"]
[BlackClock "0:00:49"]

1. d4 {[%clk 0:03:00]}  d5 {[%clk 0:02:59]} 2. c4 {[%clk 0:03:01]}  e6 {[%clk 0:03:00]} 3. Nf3 {[%clk 0:03:01]}  a6 {[%clk 0:02:59]} 4. Bg5 {[%clk 0:02:56]}  Nf6 {[%clk 0:02:56]} 5. e3 {[%clk 0:02:54]}  Nbd7 {[%clk 0:02:55]} 6. Nc3 {[%clk 0:02:53]}  dxc4 {[%clk 0:02:50]} 7. Bxc4 {[%clk 0:02:52]}  b5 {[%clk 0:02:50]} 8. Bd3 {[%clk 0:02:40]}  h6 {[%clk 0:02:50]} 9. Bh4 {[%clk 0:02:37]}  Bb7 {[%clk 0:02:49]} 10. O-O {[%clk 0:02:21]}  Be7 {[%clk 0:02:49]} 11. e4 {[%clk 0:02:18]}  b4 {[%clk 0:02:12]} 12. e5 {[%clk 0:02:18]}  Nd5 {[%clk 0:02:11]} 13. Bxe7 {[%clk 0:02:17]}  Qxe7 {[%clk 0:02:12]} 14. Nxd5 {[%clk 0:02:06]}  Bxd5 {[%clk 0:02:11]} 15. Nd2 {[%clk 0:02:05]}  c5 {[%clk 0:02:07]} 16. Ne4 {[%clk 0:02:01]}  O-O {[%clk 0:02:00]} 17. Nxc5 {[%clk 0:01:40]}  Nxc5 {[%clk 0:02:00]} 18. dxc5 {[%clk 0:01:40]}  Qxc5 {[%clk 0:02:00]} 19. Qg4 {[%clk 0:01:30]}  Rfc8 {[%clk 0:01:36]} 20. h3 {[%clk 0:01:24]}  a5 {[%clk 0:01:35]} 21. a3 {[%clk 0:01:16]}  Rab8 {[%clk 0:01:27]} 22. a4 {[%clk 0:00:43]}  b3 {[%clk 0:01:26]} 23. Bb5 {[%clk 0:00:41]}  Qe7 {[%clk 0:01:12]} 24. Rfc1 {[%clk 0:00:39]}  Rc2 {[%clk 0:01:05]} 25. Rxc2 {[%clk 0:00:34]}  bxc2 {[%clk 0:01:06]} 26. Rc1 {[%clk 0:00:35]}  Rc8 {[%clk 0:01:04]} 27. Bd3 {[%clk 0:00:33]}  Bb3 {[%clk 0:00:55]} 28. Qe4 {[%clk 0:00:32]}  g6 {[%clk 0:00:56]} 29. Bxc2 {[%clk 0:00:20]}  Qc5 {[%clk 0:00:50]} 30. Qf4 {[%clk 0:00:11]}  Bxc2 {[%clk 0:00:46]} 31. Qxh6 {[%clk 0:00:11]}  Qxe5 {[%clk 0:00:46]} 32. Qd2 {[%clk 0:00:10]}  Qxb2 {[%clk 0:00:46]} 33. Re1 {[%clk 0:00:05]}  Qc3 {[%clk 0:00:46]} 34. Qxc3 {[%clk 0:00:01]}  Rxc3 {[%clk 0:00:47]} 35. Rc1 {[%clk 0:00:02]}  Rc4 {[%clk 0:00:46]} 36. f3 {[%clk 0:00:01]}  Bb3 {[%clk 0:00:46]} 37. Rb1 {[%clk 0:00:01]}  Bxa4 {[%clk 0:00:46]} 38. Rb8+ {[%clk 0:00:02]}  Kg7 {[%clk 0:00:47]} 39. Ra8 {[%clk 0:00:02]}  Rc5 {[%clk 0:00:47]} 40. Kf2 {[%clk 0:00:02]}  Bb3 {[%clk 0:00:47]} 41. Ke2 {[%clk 0:00:02]}  a4 {[%clk 0:00:48]} 42. Kd2 {[%clk 0:00:03]}  Rc2+ {[%clk 0:00:48]} 43. Ke3 {[%clk 0:00:02]}  Rxg2 {[%clk 0:00:49]} 0-1


[Site "https://www.chess.com"]